Cogmind - Beta 11 X5 @@@ ROGUE MODE // 2021.06.19 @ 18:55:47 Player: Luigi Panache Result: Escaped! Performance ------------- Evolutions (9) 4500 Regions Visited (25) 5000 Robots Destroyed (105) 525 Value Destroyed (3663) 3663 Prototype IDs (39) 780 Alien Tech Used (0) 0 Bonus (6141) 6141 TOTAL SCORE: 20609 Bonus ------- High Alert Combat Kills 92 Follower Combat Kills 169 Met Data Miner 300 Met Warlord at Base 500 MAIN.C Attacked Warlord 500 Met Warlord at Research 2000 Scanned by Researcher 500 Win 3000 Friendly Fire -920 Cogmind --------- Core Integrity 990/1600 Matter 284/300 Energy 78/100 System Corruption 15% Temperature Cool (0) Movement Core (50) Location To Epsilon Eridani Parts ------- > --- POWER (2) -------- (None) > --- PROPULSION (6) --- (None) > --- UTILITY (15) ----- Machine Analyzer Advanced Signal Interpreter Experimental Terrain Scan Processor Advanced Hacking Suite > --- WEAPON (2) ------- (None) > --- INVENTORY (5) ---- Experimental Energy Well (0) Improved Potential Cannon Peak State ------------ > --- POWER ------------ Particle Reactor Light Quantum Reactor > --- PROPULSION ------- Medium Treads Advanced Heavy Treads Biometal Heavy Treads Diametric Drive > --- UTILITY ---------- Advanced Heat Sink Advanced Heat Sink Advanced Energy Well Experimental Energy Well Machine Analyzer Spectral Analyzer Experimental Terrain Scan Processor Improved Melee Analysis Suite Hardened Medium Armor Plating Improved Hacking Suite Experimental Hacking Suite System Mapper System Shield Combat Drone Bay > --- WEAPON ----------- Improved Potential Cannon > --- INVENTORY -------- Enhanced Nova Cannon KE Penetrator Molecular Deconstructor Phasing Sabre [Rating: 185] Favorites ----------- Power Ion Engine Engine Ion Engine Power Core Light Fission Core Reactor Particle Reactor Propulsion Improved Flight Unit Treads Light Treads Leg Aluminum Leg Hover Unit Combat Antigrav System Flight Unit Improved Flight Unit Utility Experimental Terrain Scan Processor Device Advanced Weight Redist. System Storage Medium Storage Unit Processor Experimental Terrain Scan Processor Hackware Experimental Hacking Suite Protection Hardened Medium Armor Plating Weapon Shotgun Energy Gun Improved EM Shotgun Energy Cannon Improved Potential Cannon Ballistic Gun Shotgun Launcher Mini Grenade Launcher Special Weapon Plasma Cutter Impact Weapon Heavy Hammer Slashing Weapon Power Sword Piercing Weapon Lance Build | -11 -10 -10 -10 -9 -8 -7 -7 -7 -7 -6 -6 -6 -6 -6 -5 -5 -5 -5 -5 -4 -4 -3 -3 -2 -1 ------- Run | Scr Mat Min Exi Min Mat Fac Low Low Dat Pro Fac Low Low Zio Pro Fac Upp Upp War Pro Fac Res Tes Res Acc Slots Evolved 18 | . . . . . 4 2 . . . . 2 . . . . 2 . . . . 2 2 . 2 2 Power 1 | . . . . . . . . . . . . . . . . . . . . . . . . . 1 Propulsion 4 | . . . . . 1 . . . . . 1 . . . . . . . . . 1 1 . . . Utility 13 | . . . . . 3 2 . . . . 1 . . . . 2 . . . . 1 1 . 2 1 Weapon . | . . . . . . . . . . . . . . . . . . . . . . . . . . Parts Attached 173 | 2 8 . 1 . 19 10 . 6 . . 23 1 . 8 . 14 4 1 7 1 10 8 8 18 24 Power 21 | . 1 . . . 1 2 . 3 . . 2 . . . . 2 . 1 . . 1 2 . 2 4 Engine 8 | . 1 . . . 1 2 . 2 . . . . . . . . . . . . 1 . . 1 . Core 6 | . . . . . . . . 1 . . 2 . . . . 2 . 1 . . . . . . . Reactor 7 | . . . . . . . . . . . . . . . . . . . . . . 2 . 1 4 Propulsion 46 | 2 2 . . . 9 3 . . . . 3 . . . . 4 1 . 3 . 2 3 1 3 10 Treads 16 | 2 2 . . . 8 . . . . . . . . . . . . . . . . . . 2 2 Leg . | . . . . . . . . . . . . . . . . . . . . . . . . . . Wheel . | . . . . . . . . . . . . . . . . . . . . . . . . . . Hover 10 | . . . . . . . . . . . . . . . . . . . 2 . 2 3 1 1 1 Flight 20 | . . . . . 1 3 . . . . 3 . . . . 4 1 . 1 . . . . . 7 Utility 66 | . 2 . 1 . 5 2 . 1 . . 11 1 . 5 . 5 2 . 4 1 6 2 3 9 6 Device 24 | . 1 . . . . 2 . . . . 4 . . 1 . 2 1 . 3 . 3 1 1 3 2 Storage 14 | . 1 . 1 . 3 . . . . . 4 . . . . . . . . . 1 . 2 2 . Processor 15 | . . . . . . . . . . . 2 1 . 3 . 2 1 . 1 1 1 1 . 1 1 Hackware 8 | . . . . . . . . . . . 1 . . 1 . 1 . . . . 1 . . 2 2 Protection 5 | . . . . . 2 . . 1 . . . . . . . . . . . . . . . 1 1 Artifact . | . . . . . . . . . . . . . . . . . . . . . . . . . . Weapon 40 | . 3 . . . 4 3 . 2 . . 7 . . 3 . 3 1 . . . 1 1 4 4 4 Energy Gun 4 | . . . . . 3 1 . . . . . . . . . . . . . . . . . . . Energy Cannon 7 | . . . . . 1 . . . . . . . . . . . . . . . . . 2 2 2 Ballistic Gun 5 | . 3 . . . . . . . . . 1 . . . . . . . . . . . . 1 . Ballistic Cannon . | . . . . . . . . . . . . . . . . . . . . . . . . . . Launcher 7 | . . . . . . 1 . . . . 2 . . 2 . 1 1 . . . . . . . . Special Weapon 4 | . . . . . . . . . . . 3 . . . . . . . . . . . . . 1 Impact Weapon 5 | . . . . . . 1 . 2 . . . . . . . . . . . . 1 . 1 . . Slashing Weapon 7 | . . . . . . . . . . . 1 . . 1 . 1 . . . . . 1 1 1 1 Piercing Weapon 1 | . . . . . . . . . . . . . . . . 1 . . . . . . . . . Special Melee Weapon . | . . . . . . . . . . . . . . . . . . . . . . . . . . Unidentified Prototypes 24 | . . . . . 3 . . . . . 2 . . 4 . . . . 6 . . . 3 3 3 Corrupted Parts 1 | . . . . . 1 . . . . . . . . . . . . . . . . . . . . System Corruption 3 | . . . . . 3 . . . . . . . . . . . . . . . . . . . . Parts Lost 63 | . . . . . 1 . . . . 1 2 . . . . 15 1 2 . 1 4 4 8 7 17 Power 7 | . . . . . . . . . . 1 . . . . . 1 1 . . . 1 . 1 1 1 Propulsion 27 | . . . . . 1 . . . . . . . . . . 7 . 1 . 1 1 2 3 3 8 Utility 20 | . . . . . . . . . . . 1 . . . . 4 . . . . 1 2 3 2 7 Weapon 9 | . . . . . . . . . . . 1 . . . . 3 . 1 . . 1 . 1 1 1 Highest Loss Streak 12 | . . . . . 1 . . . . 1 2 . . . . 9 2 2 . 1 4 2 8 5 12 Average Slot Usage (%) 84 | . 95 100 100 100 91 63 69 70 69 67 84 100 100 99 100 85 60 59 73 91 73 91 93 58 77 Engine 4 | . 13 14 14 14 9 7 7 7 7 5 . . . . . . . . . . . 2 . . . Core 1 | . . . . . . . . . . . 6 6 6 6 6 4 . 4 5 5 . . . . . Reactor 1 | . . . . . . . . . . . . . . . . . . . . . . 1 3 . 6 Treads 9 | . 28 28 28 28 25 . . . . . . . . . . . . . . . . . . 5 7 Hover 3 | . . . . . . . . . . . . . . . . . . . 4 11 11 24 22 2 . Flight 8 | . . . . . . 23 23 23 23 23 26 26 26 26 26 20 10 5 7 8 . . . . 3 Device 11 | . 10 14 14 14 9 9 15 15 15 15 16 20 20 20 20 13 5 5 10 11 6 8 4 5 9 Storage 9 | . 14 14 14 14 14 7 7 7 7 7 12 13 13 13 13 10 . . . . 3 4 8 6 7 Processor 10 | . . . . . . . . . . . 8 13 13 7 6 11 15 17 19 28 26 23 27 17 17 Hackware 8 | . . . . . . . . . . . 2 6 6 11 13 15 17 17 17 17 21 18 14 16 16 Protection 2 | . . . . . 15 . . 1 . . . . . . . . . . . . . . . . 3 Energy Gun 2 | . 5 . . . 14 6 . . . . . . . . . . . . . . . . . . . Ballistic Gun 5 | . 22 28 28 28 3 . . . . . . . . . . . . . . . . . . . . Launcher 1 | . . . . . . 6 7 7 7 7 2 6 6 6 6 . 3 1 . . . . . . . Impact Weapon 1 | . . . . . . . 7 7 7 7 3 . . . . . . . . . 2 4 3 . . Slashing Weapon 1 | . . . . . . . . . . . 2 6 6 5 6 4 . . . . . . 3 . . Naked Turns . | . . . . . . . . . . . . . . . . . . . . . . . . . . Heaviest Build 82 | 13 22 22 32 32 56 16 15 22 15 15 29 28 28 28 28 28 9 14 11 11 34 42 54 58 82 Greatest Support 173 | 40 40 40 40 40 69 24 15 15 15 15 30 30 30 30 30 30 14 14 35 16 41 89 82 93 173 Greatest Overweight (x) 1 | . . . . . 1 . . 1 . . . . . . . . . . . . . . 1 1 1 Average Overweight (x) . | . . . . . . . . . . . . . . . . . . . . . . . . . . Largest Inventory Capacity 15 | 8 10 10 15 15 15 15 10 10 10 10 10 10 10 10 10 10 5 5 5 5 15 15 15 15 5 Average Capacity 10 | 8 8 10 12 15 15 10 10 10 10 10 9 10 10 10 10 9 5 5 5 5 11 15 15 7 5 Most Carried 15 | 7 10 10 11 11 15 15 10 10 10 10 10 10 10 10 10 10 5 5 5 5 8 14 15 13 5 Average Carried 9 | 6 8 10 10 11 14 8 9 10 10 10 9 10 10 9 10 8 4 3 5 4 6 9 14 5 4 Final Capacity 15 | 8 10 10 15 15 15 10 10 10 10 10 10 10 10 10 10 5 5 5 5 5 15 15 15 5 5 Final Carried 15 | 6 10 10 11 11 15 8 10 10 10 10 10 10 10 10 10 5 4 5 5 5 8 14 14 5 3 Class Distribution -------------------- 34% | Mutant 25% | Hacker-Mutant 23% | Hacker-Scout 11% | Sprinter Dominant Class ---------------- Mutant | -10/Materials Mutant | -10/Mines Mutant | -10/Exiles Mutant | -9/Mines Mutant | -8/Materials Mutant | -7/Factory Mutant | -7/Lower Caves Mutant | -7/Lower Caves Mutant | -7/Data Miner Mutant | -6/Proximity Caves Sprinter | -6/Factory Sprinter | -6/Lower Caves Sprinter | -6/Lower Caves Hacker-Scout | -6/Zion Hacker-Scout | -5/Proximity Caves Hacker-Scout | -5/Factory Hacker-Mutant | -5/Upper Caves Hacker-Mutant | -5/Upper Caves Hacker-Mutant | -5/Warlord Hacker-Mutant | -4/Proximity Caves Hacker-Scout | -4/Factory Hacker-Scout | -3/Research Hacker-Scout | -3/Testing Hacker-Mutant | -2/Research Hacker-Mutant | -1/Access Resources | -11 -10 -10 -10 -9 -8 -7 -7 -7 -7 -6 -6 -6 -6 -6 -5 -5 -5 -5 -5 -4 -4 -3 -3 -2 -1 ----------- Run | Scr Mat Min Exi Min Mat Fac Low Low Dat Pro Fac Low Low Zio Pro Fac Upp Upp War Pro Fac Res Tes Res Acc Matter Collected 2464 | 201 199 136 10 106 305 4 197 26 . 67 216 89 . 25 12 121 15 . . 21 70 178 142 141 183 Remotely . | . . . . . . . . . . . . . . . . . . . . . . . . . . Salvage Created 4113 | . 353 245 . 117 1000 129 132 . . 209 248 29 . . . 86 . 32 . . . 178 334 . 1021 Parts 190 | . 21 17 . 8 60 12 . . . 1 14 3 . . . 6 . 2 . . . . 13 . 33 Haulers Intercepted 5 | . 2 . . . 2 . . . . . 1 . . . . . . . . . . . . . . Recyclers Shooed 1 | . . . . 1 . . . . . . . . . . . . . . . . . . . . . Parts Field Recycled . | . . . . . . . . . . . . . . . . . . . . . . . . . . Retrieved Matter . | . . . . . . . . . . . . . . . . . . . . . . . . . . Parts Self-Destructed 7 | . . . . . . . . . . . . 2 . . . . . 2 3 . . . . . . Prevented 2 | . . . . . . . . . . . . . . . . . . 2 . . . . . . . Kills | -11 -10 -10 -10 -9 -8 -7 -7 -7 -7 -6 -6 -6 -6 -6 -5 -5 -5 -5 -5 -4 -4 -3 -3 -2 -1 ------- Run | Scr Mat Min Exi Min Mat Fac Low Low Dat Pro Fac Low Low Zio Pro Fac Upp Upp War Pro Fac Res Tes Res Acc Combat Hostiles Destroyed 71 | . 5 4 . 5 16 9 . . . . 4 3 . . . 5 . 2 . . . 1 1 . 16 Melee 3 | . . . . . . . . . . . 1 . . . . 1 . . . . . . 1 . . Guns 28 | . 5 4 . 5 14 . . . . . . . . . . . . . . . . . . . . Cannons 7 | . . . . . . . . . . . . . . . . . . . . . . . . . 7 AOE 31 | . . . . . 2 9 . . . . 3 3 . . . 4 . 2 . . . . . . 8 Classes Destroyed 17 | . 4 3 . . 3 1 2 . . . 1 . . . . . . . . . . . 1 . 2 Worker 4 | . 1 . . . . . . . . . 1 . . . . . . . . . . 1 . . 1 Builder 7 | . . 2 . . 3 . . . . . 2 . . . . . . . . . . . . . . Tunneler 1 | . . 1 . . . . . . . . . . . . . . . . . . . . . . . Hauler 5 | . 2 . . . 2 . . . . . 1 . . . . . . . . . . . . . . Recycler 4 | . . . . . 2 . . . . . . . . . . . . . . . . 1 1 . . Minesweeper 2 | . . . . . . . 1 . . 1 . . . . . . . . . . . . . . . Mechanic 1 | . . . . . . . . . . . 1 . . . . . . . . . . . . . . Operator 1 | . . . . . 1 . . . . . . . . . . . . . . . . . . . . Watcher 6 | . 1 . . . 2 . . . . . 1 . . . . . . . . . . . . . 2 Swarmer 33 | . . 2 . 3 8 7 . . . . 4 3 . . . 3 . 2 . . . 1 . . . Grunt 24 | . 5 2 . 2 6 1 . . . . . . . . . . . . . . . . . . 8 Researcher 2 | . . . . . . . . . . . . . . . . . . . . . . . 2 . . Sentry 4 | . . . . . 2 . . . . . . . . . . . . . . . . . 1 . 1 Hunter 4 | . . . . . . . . . . . . . . . . . . . . . . . . . 4 Programmer 4 | . . . . . . 1 . . . . . . . . . 2 . . . . . . . . 1 Q-Series 2 | . . . . . . . . . . . . . . . . . . . . . . . . . 2 Packrat 1 | . . . . . . . 1 . . . . . . . . . . . . . . . . . . Samaritan 2 | . . . . . . . 1 . . 1 . . . . . . . . . . . . . . . Best Kill Streak 9 | . 3 2 . 3 9 4 1 . . 1 3 3 . . . 5 . 2 . . . 2 3 . 6 Combat Bots Only 6 | . 2 2 . 3 4 4 . . . . 3 3 . . . 5 . 2 . . . 1 1 . 6 Max Kills in Single Turn 4 | . 1 1 . 1 2 3 1 . . 1 3 1 . . . 2 . 2 . . . 1 1 . 4 Gunslinging . | . . . . . . . . . . . . . . . . . . . . . . . . . . Exploded 3 | . . . . . 1 3 . . . . 3 1 . . . 2 . 2 . . . . . . 2 Melee 1 | . . . . . . . . . . . 1 . . . . 1 . . . . . . 1 . . Uniques/NPCs Destroyed 1 | . . 1 . . . . . . . . . . . . . . . . . . . . . . . YI-UF0 (-10/Mines) Combat | -11 -10 -10 -10 -9 -8 -7 -7 -7 -7 -6 -6 -6 -6 -6 -5 -5 -5 -5 -5 -4 -4 -3 -3 -2 -1 -------- Run | Scr Mat Min Exi Min Mat Fac Low Low Dat Pro Fac Low Low Zio Pro Fac Upp Upp War Pro Fac Res Tes Res Acc Damage Taken 10390 | . 231 157 . 209 523 139 77 . . 22 227 64 59 . . 1606 19 269 . 141 567 636 1653 1283 2508 Core 3094 | . 51 20 . 22 21 48 65 . . . 12 34 36 . . 629 . 80 . 79 132 120 501 634 610 Absorbed by Shields . | . . . . . . . . . . . . . . . . . . . . . . . . . . Reduced by Siege Mode 18 | . . . . . . . . . . . . . . . . . . . . . . . . . 18 Core Remaining (%) 70 | 100 . . . 62 96 . . . . 83 . . . . 90 . . . . 21 88 . 52 56 61 Volleys Fired 167 | . 33 14 . 12 43 9 1 . . . 10 3 . . . 5 . 1 . . . . 9 1 26 Largest 2 | . 2 2 . 2 2 2 1 . . . 1 1 . . . 1 . 1 . . . . 1 1 1 Hottest 200 | . 60 46 . 46 90 75 30 . . . 43 30 . . . 36 . 36 . . . . 110 200 200 Shots Fired 268 | . 63 28 . 24 86 11 1 . . . 10 3 . . . 5 . 1 . . . . 9 1 26 Gun 203 | . 63 28 . 24 86 2 . . . . . . . . . . . . . . . . . . . Cannon 32 | . . . . . . . . . . . . . . . . . . . . . . . 9 1 22 Launcher 22 | . . . . . . 9 1 . . . 3 3 . . . 5 . 1 . . . . . . . Special 11 | . . . . . . . . . . . 7 . . . . . . . . . . . . . 4 Kinetic 130 | . 46 28 . 24 32 . . . . . . . . . . . . . . . . . . . . Thermal 56 | . 17 . . . . . . . . . 7 . . . . . . . . . . . 9 1 22 Explosive 22 | . . . . . . 9 1 . . . 3 3 . . . 5 . 1 . . . . . . . Electromagnetic 56 | . . . . . 54 2 . . . . . . . . . . . . . . . . . . . Robot Hit Streak 16 | . 13 11 . 6 16 3 . . . . 1 1 . . . 4 . . . . . . . . 5 Robot Miss Streak 8 | . 2 8 . 4 4 1 1 . . . 2 . . . . 1 . . . . . . . 1 2 Penetration Max . | . . . . . . . . . . . . . . . . . . . . . . . . . . Secondary Targets 6 | . 1 1 . 2 2 . . . . . . . . . . . . . . . . . . . . Max Gunslinging Chain 1 | . 1 1 . 1 1 . . . . . . . . . . . . . . . . . . . . Shots Hit Robots 248 | . 42 17 . 18 69 5 5 . . 5 16 1 . . . 18 . . . . . 14 24 . 14 Core Hits 156 | . 17 13 . 9 48 14 1 . . 2 8 4 . . . 8 . 3 . . . 2 7 . 20 Critical Kills 1 | . . . . . . . . . . . . . . . . . . . . . . . . . 1 Critical Parts Destroyed 1 | . 1 . . . . . . . . . . . . . . . . . . . . . . . . Critical Strikes 3 | . 1 . . . . . . . . . . . . . . 1 . . . . . . . . 1 Meltdown 1 | . . . . . . . . . . . . . . . . . . . . . . . . . 1 Destroy 1 | . 1 . . . . . . . . . . . . . . . . . . . . . . . . Sever 1 | . . . . . . . . . . . . . . . . 1 . . . . . . . . . Melee Attacks 177 | . . . . . . . 9 . . 10 29 . . . 1 35 . 1 . . 2 27 56 1 6 Impact 78 | . . . . . . . 9 . . 10 13 . . . . . . . . . 2 22 22 . . Slashing 95 | . . . . . . . . . . . 16 . . . 1 32 . . . . . 5 34 1 6 Piercing 4 | . . . . . . . . . . . . . . . . 3 . 1 . . . . . . . Sneak Attacks 18 | . . . . . . . 2 . . 2 6 . . . . 1 . . . . . 5 2 . . Combat Hostiles . | . . . . . . . . . . . . . . . . . . . . . . . . . . Follow-up Attacks 7 | . . . . . . . . . . . . . . . . . . . . . . 1 6 . . Damage Inflicted 12810 | . 557 255 . 248 1519 905 190 . . 481 1412 248 . . . 1046 . 107 . . . 617 1089 66 4070 Guns 2206 | . 557 240 . 248 1161 . . . . . . . . . . . . . . . . . . . . Cannons 1831 | . . . . . . . . . . . . . . . . . . . . . . . . . 1831 Explosions 4570 | . . . . . 347 905 23 . . . 333 248 . . . 422 . 107 . . . . . 47 2138 Melee 4007 | . . . . . . . 167 . . 481 1044 . . . . 624 . . . . . 611 1026 . 54 Ramming 161 | . . 15 . . 11 . . . . . . . . . . . . . . . . 6 63 19 47 Kinetic 1298 | . 414 240 . 248 396 . . . . . . . . . . . . . . . . . . . . Thermal 4541 | . 143 . . . 347 . . . . . 35 . . . . . . . . . . . . 47 3969 Explosive 2038 | . . . . . . 905 23 . . . 333 248 . . . 422 . 107 . . . . . . . Electromagnetic 765 | . . . . . 765 . . . . . . . . . . . . . . . . . . . . Impact 1369 | . . . . . . . 167 . . 481 228 . . . . . . . . . . 346 147 . . Slashing 2638 | . . . . . . . . . . . 816 . . . . 624 . . . . . 265 879 . 54 Piercing . | . . . . . . . . . . . . . . . . . . . . . . . . . . Highest Corruption 15 | . . . . . 5 . . . . . . . . . . 11 11 11 11 . . . 4 . 15 Average Corruption 5 | . . . . . 4 . . . . . . . . . . 6 11 11 11 . . . 3 . 5 Corruption Purged . | . . . . . . . . . . . . . . . . . . . . . . . . . . Effects 56 | . . . . . 14 . . . . . . . . . . 12 4 5 1 . . . . . 20 Message Errors 12 | . . . . . 3 . . . . . . . . . . 2 1 2 . . . . . . 4 Matter Fused 13 | . . . . . 4 . . . . . . . . . . 4 . 2 . . . . . . 3 Heat Flow Errors 8 | . . . . . 4 . . . . . . . . . . 3 . . . . . . . . 1 Energy Discharges 6 | . . . . . 2 . . . . . . . . . . 1 2 . 1 . . . . . . Parts Rejected 1 | . . . . . . . . . . . . . . . . . . . . . . . . . 1 Data Loss (minor) 3 | . . . . . . . . . . . . . . . . 1 . . . . . . . . 2 Data Loss (major) 3 | . . . . . 1 . . . . . . . . . . . 1 . . . . . . . 1 Alerts 1 | . . . . . . . . . . . . . . . . . . 1 . . . . . . . Misdirections 9 | . . . . . . . . . . . . . . . . 1 . . . . . . . . 8 Overload Shots . | . . . . . . . . . . . . . . . . . . . . . . . . . . Overflow Damage 1518 | . . . . . 6 48 51 . . 273 361 . . . . 121 . . . . . 196 56 . 406 Projectiles 172 | . . . . . . . . . . . . . . . . . . . . . . . . . 172 Explosions 306 | . . . . . 6 48 . . . . 18 . . . . . . . . . . . . . 234 Melee 1040 | . . . . . . . 51 . . 273 343 . . . . 121 . . . . . 196 56 . . Knockbacks 6 | . . . . . 1 . . . . 2 1 . . . . . . . . . . 1 . 1 . Impact 6 | . . . . . 1 . . . . 2 1 . . . . . . . . . . 1 . 1 . Kinetic . | . . . . . . . . . . . . . . . . . . . . . . . . . . Secondary . | . . . . . . . . . . . . . . . . . . . . . . . . . . Self-Inflicted Damage 359 | . . . . . 131 . 49 . . . 58 . . . . 49 . . . . . 3 30 9 30 Shots 6 | . . . . . 3 . 1 . . . 1 . . . . 1 . . . . . . . . . Rammed 12 | . . 3 . . 1 . . . . . . . . . . . . . . . . 1 5 1 1 Targets Rammed 13 | . . 4 . . 1 . . . . . . . . . . . . . . . . 1 5 1 1 Kicked . | . . . . . . . . . . . . . . . . . . . . . . . . . . Crushed 1 | . . 1 . . . . . . . . . . . . . . . . . . . . . . . Highest Temperature 497 | . 78 . . . 395 . . . . . . . . . . 200 . . . . . . 497 133 205 Average Temperature 102 | . 29 . . . 99 . . . . . . . . . . 78 . . . . . . 296 81 63 Received Heat Transfer 1436 | . 144 78 . 96 135 24 6 . . . 18 18 12 . . 139 . 36 . . 18 81 316 234 81 Effects 5 | . . . . . 2 . . . . . . . . . . . . . . . . . 3 . . Shutdowns 1 | . . . . . . . . . . . . . . . . . . . . . . . 1 . . Energy Bleed 1 | . . . . . . . . . . . . . . . . . . . . . . . 1 . . Interference 2 | . . . . . 2 . . . . . . . . . . . . . . . . . . . . Matter Decay 1 | . . . . . . . . . . . . . . . . . . . . . . . 1 . . Siege Activations 1 | . . . . . . . . . . . . . . . . . . . . . . . . . 1 Total Turns 9 | . . . . . . . . . . . . . . . . . . . . . . . . . 9 Longest Duration 9 | . . . . . . . . . . . . . . . . . . . . . . . . . 9 Robots Corrupted . | . . . . . . . . . . . . . . . . . . . . . . . . . . Combat Hostiles . | . . . . . . . . . . . . . . . . . . . . . . . . . . Parts Fried 20 | . . . . . 4 . 1 . . 6 2 . . . . . . . . . . 5 2 . . Impact Corruptions 33 | . . . . . . . 9 . . 12 5 . . . . . . . . . . 6 1 . . Robots Melted 1 | . . . . . . . . . . . . . . . . . . . . . . . . . 1 Combat Hostiles 1 | . . . . . . . . . . . . . . . . . . . . . . . . . 1 Parts Melted 4 | . . . . . 1 . . . . . . . . . . . . . . . . . . . 3 Heat Transferred 3646 | . 325 . . . 400 . . . . . 111 . . . . . . . . . . . . 80 2730 Parts Sabotaged 2 | . . . . . . . . . . . . . . . . . . . . . . . . . 2 Parts Stolen . | . . . . . . . . . . . . . . . . . . . . . . . . . . Parts Stripped . | . . . . . . . . . . . . . . . . . . . . . . . . . . Power Chain Reactions 3 | . . . . . 3 . . . . . . . . . . . . . . . . . . . . Missiles Intercepted . | . . . . . . . . . . . . . . . . . . . . . . . . . . Alert | -11 -10 -10 -10 -9 -8 -7 -7 -7 -7 -6 -6 -6 -6 -6 -5 -5 -5 -5 -5 -4 -4 -3 -3 -2 -1 ------- Run | Scr Mat Min Exi Min Mat Fac Low Low Dat Pro Fac Low Low Zio Pro Fac Upp Upp War Pro Fac Res Tes Res Acc Peak Influence 1012 | . 178 122 . 120 338 398 . . . . 529 . . . . 261 . . . . 95 143 419 198 1012 Initial 294 | . . 2 . . 46 63 . . . . 37 . . . . . . . . . 84 49 294 139 . Average 159 | . 66 45 . 73 210 242 . . . . 156 . . . . 191 . . . . 65 61 310 99 252 Maximum Alert Level 3 | . . . . . 1 1 . . . . 2 . . . . 1 . . . . . . 2 . 3 Low Security (%) 67 | 100 100 100 . 100 40 19 . . . . 67 . . . . 46 . . . . 100 100 . 100 54 Level 1 27 | . . . . . 59 80 . . . . 19 . . . . 53 . . . . . . 98 . 26 Level 2 3 | . . . . . . . . . . . 13 . . . . . . . . . . . 1 . 12 Level 3 1 | . . . . . . . . . . . . . . . . . . . . . . . . . 6 Level 4 . | . . . . . . . . . . . . . . . . . . . . . . . . . . Level 5 . | . . . . . . . . . . . . . . . . . . . . . . . . . . High Security . | . . . . . . . . . . . . . . . . . . . . . . . . . . Max Security . | . . . . . . . . . . . . . . . . . . . . . . . . . . Squads Dispatched 25 | . 1 . . . 3 2 . . . . 3 . . . . 1 . . . . . 1 3 1 10 Investigation 7 | . 1 . . . 2 1 . . . . . . . . . . . . . . . . . . 3 Extermination 3 | . . . . . . . . . . . . . . . . 1 . . . . . . . . 2 Reinforcement 13 | . . . . . 1 1 . . . . 2 . . . . . . . . . . 1 3 1 4 Assault 2 | . . . . . . . . . . . 1 . . . . . . . . . . . . . 1 Garrison . | . . . . . . . . . . . . . . . . . . . . . . . . . . Intercept . | . . . . . . . . . . . . . . . . . . . . . . . . . . Construction Impeded 1 | . . . . . . . . . . . 1 . . . . . . . . . . . . . . Haulers Reinforced 1 | . . . . . . 1 . . . . . . . . . . . . . . . . . . . Cargo Convoy Interrupts 2 | . . . . . . . . . . . 1 . . . . . . . . . . 1 . . . Stealth | -11 -10 -10 -10 -9 -8 -7 -7 -7 -7 -6 -6 -6 -6 -6 -5 -5 -5 -5 -5 -4 -4 -3 -3 -2 -1 --------- Run | Scr Mat Min Exi Min Mat Fac Low Low Dat Pro Fac Low Low Zio Pro Fac Upp Upp War Pro Fac Res Tes Res Acc Distress Signals 20 | . 1 . . . 1 2 . . . . . . . . . . . . . . . 2 2 5 7 Communications Jammed . | . . . . . . . . . . . . . . . . . . . . . . . . . . Distress Signals . | . . . . . . . . . . . . . . . . . . . . . . . . . . Times Spotted 275 | . 9 5 . 5 27 14 1 1 . 4 10 7 6 . 1 20 5 8 . 9 7 12 15 13 96 Peak Tracking Total 39 | . 2 2 . 3 4 5 1 1 . 4 5 3 6 . 5 7 5 8 . 9 6 4 8 8 39 Tactical Retreats 38 | . 1 1 . . . 1 . 1 . 1 2 1 3 . . 5 2 3 . 2 1 3 2 1 8 Traps | -11 -10 -10 -10 -9 -8 -7 -7 -7 -7 -6 -6 -6 -6 -6 -5 -5 -5 -5 -5 -4 -4 -3 -3 -2 -1 ------- Run | Scr Mat Min Exi Min Mat Fac Low Low Dat Pro Fac Low Low Zio Pro Fac Upp Upp War Pro Fac Res Tes Res Acc Traps Triggered 7 | . . . . . 1 . . . . . . . . . . . . . . . 1 . . . 5 Indirectly . | . . . . . . . . . . . . . . . . . . . . . . . . . . Trap Hack Attempts . | . . . . . . . . . . . . . . . . . . . . . . . . . . Triggered . | . . . . . . . . . . . . . . . . . . . . . . . . . . Disarmed . | . . . . . . . . . . . . . . . . . . . . . . . . . . Reprogrammed 6 | . . . . . . . . . . . . . . . . . . . . . . 6 . . . Reused 1 | . . . . . . . . . . . . . . . . . . . . . . 1 . . . Traps Extracted . | . . . . . . . . . . . . . . . . . . . . . . . . . . Installed . | . . . . . . . . . . . . . . . . . . . . . . . . . . Triggered 11 | . . . . . . . . . . . . . . . . . . 1 7 2 . 1 . . . Machines | -11 -10 -10 -10 -9 -8 -7 -7 -7 -7 -6 -6 -6 -6 -6 -5 -5 -5 -5 -5 -4 -4 -3 -3 -2 -1 ---------- Run | Scr Mat Min Exi Min Mat Fac Low Low Dat Pro Fac Low Low Zio Pro Fac Upp Upp War Pro Fac Res Tes Res Acc Machines Disabled 13 | . . . . . . . . . . . 2 . . . . . . 1 . . . . 5 . 5 Max in Single Turn 1 | . . . . . . . . . . . 1 . . . . . . 1 . . . . 1 . 1 Garrison Access 6 | . . . . . . . . . . . 3 . . . . . . . . . . . . 1 2 Machines Sabotaged . | . . . . . . . . . . . . . . . . . . . . . . . . . . Garrisons Compromised 1 | . . . . . . . . . . . 1 . . . . . . . . . . . . . . Overloaded Fab Kills . | . . . . . . . . . . . . . . . . . . . . . . . . . . Fab Network Shutdowns . | . . . . . . . . . . . . . . . . . . . . . . . . . . Hacking | -11 -10 -10 -10 -9 -8 -7 -7 -7 -7 -6 -6 -6 -6 -6 -5 -5 -5 -5 -5 -4 -4 -3 -3 -2 -1 --------- Run | Scr Mat Min Exi Min Mat Fac Low Low Dat Pro Fac Low Low Zio Pro Fac Upp Upp War Pro Fac Res Tes Res Acc Machines Accessed 50 | . 2 . 1 . 7 4 . . 3 . 9 1 . . . 2 . . 1 . 3 5 3 1 8 Terminals 30 | . 1 . . . 4 2 . . . . 6 . . . . 2 . . . . 2 5 2 . 6 Fabricators 2 | . . . . . . . . . . . . . . . . . . . . . . . 1 . 1 Repair Stations 6 | . 1 . . . 2 2 . . . . 1 . . . . . . . . . . . . . . Recycling Units . | . . . . . . . . . . . . . . . . . . . . . . . . . . Scanalyzers 2 | . . . . . 1 . . . . . . . . . . . . . . . 1 . . . . Garrison Access 4 | . . . . . . . . . . . 2 . . . . . . . . . . . . 1 1 Total Hacks 137 | . 4 . 1 . 19 10 . . 22 . 21 1 . . . 4 . . 1 . 4 20 8 1 21 Successful 76 | . 3 . 1 . 9 2 . . 22 . 7 1 . . . 3 . . 1 . 1 15 2 1 8 Failed 61 | . 1 . . . 10 8 . . . . 14 . . . . 1 . . . . 3 5 6 . 13 Catastrophic 9 | . . . . . 1 4 . . . . 2 . . . . . . . . . 1 . . . 1 Database Lockouts . | . . . . . . . . . . . . . . . . . . . . . . . . . . Manual 34 | . 2 . . . 8 1 . . . . 6 . . . . 1 . 1 1 . 2 2 . . 10 Terminals 79 | . 2 . . . 12 5 . . . . 12 . . . . 4 . . . . 2 20 5 . 17 Fabricators 6 | . . . . . . . . . . . . . . . . . . . . . . . 3 . 3 Repair Stations 16 | . 2 . . . 4 5 . . . . 5 . . . . . . . . . . . . . . Recycling Units . | . . . . . . . . . . . . . . . . . . . . . . . . . . Scanalyzers 5 | . . . . . 3 . . . . . . . . . . . . . . . 2 . . . . Garrison Access 6 | . . . . . . . . . . . 4 . . . . . . . . . . . . 1 1 Terminal Hacks 54 | . . . 1 . 2 2 . . 22 . 3 1 . . . 3 . . 1 . . 13 1 . 5 Record 8 | . . . 1 . . . . . 6 . . . . . . . . . . . . 1 . . . Part Schematic 10 | . . . . . 1 . . . 8 . . . . . . . . . . . . 1 . . . Robot Schematic 5 | . . . . . . . . . 5 . . . . . . . . . . . . . . . . Robot Analysis 1 | . . . . . . . . . . . . . . . . . . . . . . 1 . . . Prototype ID Bank 4 | . . . . . . . . . 3 . 1 . . . . . . . . . . . . . . Open Door 2 | . . . . . . . . . . . . 1 . . . . . . 1 . . . . . . Level Access Points 1 | . . . . . . . . . . . . . . . . . . . . . . . . . 1 Branch Access Points 4 | . . . . . . 1 . . . . 1 . . . . 1 . . . . . 1 . . . Machine Index 2 | . . . . . . . . . . . . . . . . . . . . . . 1 . . 1 Terminal Index 3 | . . . . . . 1 . . . . 1 . . . . . . . . . . 1 . . . Fabricator Index 1 | . . . . . . . . . . . . . . . . 1 . . . . . . . . . Garrison Index 1 | . . . . . . . . . . . . . . . . 1 . . . . . . . . . Alert Level 1 | . . . . . . . . . . . . . . . . . . . . . . . 1 . . Unreport Threat 5 | . . . . . 1 . . . . . . . . . . . . . . . . 2 . . 2 Locate Traps 2 | . . . . . . . . . . . . . . . . . . . . . . 2 . . . Reprogram Traps 1 | . . . . . . . . . . . . . . . . . . . . . . 1 . . . Hauler Manifests 1 | . . . . . . . . . . . . . . . . . . . . . . 1 . . . Zone Layout 2 | . . . . . . . . . . . . . . . . . . . . . . 1 . . 1 Fabricator Hacks 3 | . . . . . . . . . . . . . . . . . . . . . . . 1 . 2 Load Schematic 2 | . . . . . . . . . . . . . . . . . . . . . . . 1 . 1 Build 1 | . . . . . . . . . . . . . . . . . . . . . . . . . 1 Repair Station Hacks 7 | . 2 . . . 3 . . . . . 2 . . . . . . . . . . . . . . Scan Component 3 | . 1 . . . 1 . . . . . 1 . . . . . . . . . . . . . . Repair 3 | . 1 . . . 1 . . . . . 1 . . . . . . . . . . . . . . Refit 1 | . . . . . 1 . . . . . . . . . . . . . . . . . . . . Recycling Unit Hacks . | . . . . . . . . . . . . . . . . . . . . . . . . . . Scanalyzer 4 | . . . . . 3 . . . . . . . . . . . . . . . 1 . . . . Insert Component 2 | . . . . . 1 . . . . . . . . . . . . . . . 1 . . . . Analyze 2 | . . . . . 2 . . . . . . . . . . . . . . . . . . . . Garrison Access Hacks 4 | . . . . . . . . . . . 2 . . . . . . . . . . . . 1 1 Seal Access 4 | . . . . . . . . . . . 2 . . . . . . . . . . . . 1 1 Unauthorized Hacks 4 | . 1 . . . 1 . . . . . . . . . . . . . . . . 2 . . . Terminals 4 | . 1 . . . 1 . . . . . . . . . . . . . . . . 2 . . . Assimilate 2 | . 1 . . . . . . . . . . . . . . . . . . . . 1 . . . Botnet 2 | . . . . . 1 . . . . . . . . . . . . . . . . 1 . . . Fabricators . | . . . . . . . . . . . . . . . . . . . . . . . . . . Repair Stations . | . . . . . . . . . . . . . . . . . . . . . . . . . . Recycling Units . | . . . . . . . . . . . . . . . . . . . . . . . . . . Scanalyzers . | . . . . . . . . . . . . . . . . . . . . . . . . . . Garrison Access . | . . . . . . . . . . . . . . . . . . . . . . . . . . Data Cores Recovered . | . . . . . . . . . . . . . . . . . . . . . . . . . . Used . | . . . . . . . . . . . . . . . . . . . . . . . . . . Hacking Detections 38 | . 1 . . . 6 4 . . . . 8 . . . . 2 . . . . 3 5 3 . 6 Full Trace Events 6 | . 1 . . . 2 1 . . . . . . . . . . . . . . . . . . 2 Feedback Events . | . . . . . . . . . . . . . . . . . . . . . . . . . . Feedback Blocked . | . . . . . . . . . . . . . . . . . . . . . . . . . . Robot Schematics Acquired 5 | . . . . . . . . . 5 . . . . . . . . . . . . . . . . Robots Built . | . . . . . . . . . . . . . . . . . . . . . . . . . . Matter . | . . . . . . . . . . . . . . . . . . . . . . . . . . Time . | . . . . . . . . . . . . . . . . . . . . . . . . . . Total Robot Build Rating . | . . . . . . . . . . . . . . . . . . . . . . . . . . Part Schematics Acquired 11 | . . . . . 2 . . . 8 . . . . . . . . . . . . 1 . . . Parts Built 1 | . . . . . . . . . . . . . . . . . . . . . . . . . 1 Matter 318 | . . . . . . . . . . . . . . . . . . . . . . . . . 318 Time 56 | . . . . . . . . . . . . . . . . . . . . . . . . . 56 Total Part Build Rating 6 | . . . . . . . . . . . . . . . . . . . . . . . . . 6 Parts Repaired 3 | . 1 . . . 1 . . . . . 1 . . . . . . . . . . . . . . Time 71 | . 26 . . . 32 . . . . . 13 . . . . . . . . . . . . . . Parts Recycled . | . . . . . . . . . . . . . . . . . . . . . . . . . . Recycled Matter . | . . . . . . . . . . . . . . . . . . . . . . . . . . Retrieved Matter . | . . . . . . . . . . . . . . . . . . . . . . . . . . Retrieved Components . | . . . . . . . . . . . . . . . . . . . . . . . . . . Parts Scanalyzed 2 | . . . . . 1 . . . . . . . . . . . . . . . 1 . . . . Part Schematics Acquired 1 | . . . . . 1 . . . . . . . . . . . . . . . . . . . . Parts Damaged . | . . . . . . . . . . . . . . . . . . . . . . . . . . Bothacking | -11 -10 -10 -10 -9 -8 -7 -7 -7 -7 -6 -6 -6 -6 -6 -5 -5 -5 -5 -5 -4 -4 -3 -3 -2 -1 ------------ Run | Scr Mat Min Exi Min Mat Fac Low Low Dat Pro Fac Low Low Zio Pro Fac Upp Upp War Pro Fac Res Tes Res Acc Used RIF Installer . | . . . . . . . . . . . . . . . . . . . . . . . . . . Robots Hacked . | . . . . . . . . . . . . . . . . . . . . . . . . . . Non-combat . | . . . . . . . . . . . . . . . . . . . . . . . . . . Combat . | . . . . . . . . . . . . . . . . . . . . . . . . . . Robot Hacks Applied . | . . . . . . . . . . . . . . . . . . . . . . . . . . Relay Couplers Released 1 | . . . . . . . . . . . . . . . . . . . . . . . . . 1 Machine Destruction 1 | . . . . . . . . . . . . . . . . . . . . . . . . . 1 Robots Rewired 1 | . . . . . . . . . . . . . . . . . . . . . . . 1 . . Allies Hacked . | . . . . . . . . . . . . . . . . . . . . . . . . . . Hacks Repelled . | . . . . . . . . . . . . . . . . . . . . . . . . . . Allies | -11 -10 -10 -10 -9 -8 -7 -7 -7 -7 -6 -6 -6 -6 -6 -5 -5 -5 -5 -5 -4 -4 -3 -3 -2 -1 -------- Run | Scr Mat Min Exi Min Mat Fac Low Low Dat Pro Fac Low Low Zio Pro Fac Upp Upp War Pro Fac Res Tes Res Acc Total Allies 11 | . . . . 2 . . . . . 1 4 . . 2 . . . . . . . 1 1 . . Largest Group 2 | . . . . 2 2 . . . . 1 1 . . 2 2 1 . . . . . 1 1 . . Highest-Rated Group 125 | . . . . 53 53 . . . . 95 31 . . 34 34 14 . . . . . 26 125 . . Highest-Rated Ally 125 | . . . . 31 31 . . . . 95 31 . . 20 20 14 . . . . . 26 125 . . Total Orders 2 | . . . . . . . . . . . . . . . . . . . . . . . . . 2 EXPLORE 1 | . . . . . . . . . . . . . . . . . . . . . . . . . 1 RETURN 1 | . . . . . . . . . . . . . . . . . . . . . . . . . 1 Ally Attacks 58 | . . . . . 27 . . . . 6 4 . . . . 2 . . . . . . 11 . 8 Total Damage 1087 | . . . . . 314 . . . . 145 94 . . . . 19 . . . . . . 409 . 106 Kills 8 | . . . . . 6 . . . . . . . . . . . . . . . . . 2 . . Allies Corrupted . | . . . . . . . . . . . . . . . . . . . . . . . . . . Allies Melted 4 | . . . . . . . . . . 1 . . . . . . . . . . . . . 3 . Intel | -11 -10 -10 -10 -9 -8 -7 -7 -7 -7 -6 -6 -6 -6 -6 -5 -5 -5 -5 -5 -4 -4 -3 -3 -2 -1 ------- Run | Scr Mat Min Exi Min Mat Fac Low Low Dat Pro Fac Low Low Zio Pro Fac Upp Upp War Pro Fac Res Tes Res Acc Robot Analysis Total 1 | . . . . . . . . . . . . . . . . . . . . . . 1 . . . Derelict Logs Recovered 13 | . . . . 1 . . 2 1 . 2 . 2 . 1 . . 1 1 . 2 . . . . . Drone Launches 1 | . . . . . . . . . . . . . . . . . . . . . . . . . 1 Drone Recoveries . | . . . . . . . . . . . . . . . . . . . . . . . . . . Decoded 0b10 Intel 54 | . . . . . . . . . . . . . . . . 12 . . . . 10 19 13 . . Traps 5 | . . . . . . . . . . . . . . . . 2 . . . . . 2 1 . . Emergency Access 2 | . . . . . . . . . . . . . . . . . . . . . . . 2 . . Items 37 | . . . . . . . . . . . . . . . . 8 . . . . 9 13 7 . . Machines 1 | . . . . . . . . . . . . . . . . . . . . . . 1 . . . Patrols 7 | . . . . . . . . . . . . . . . . 2 . . . . 1 1 3 . . Guards 2 | . . . . . . . . . . . . . . . . . . . . . . 2 . . . Exploration | -11 -10 -10 -10 -9 -8 -7 -7 -7 -7 -6 -6 -6 -6 -6 -5 -5 -5 -5 -5 -4 -4 -3 -3 -2 -1 ------------- Run | Scr Mat Min Exi Min Mat Fac Low Low Dat Pro Fac Low Low Zio Pro Fac Upp Upp War Pro Fac Res Tes Res Acc Turns Passed 9537 | 7 580 604 264 246 1022 221 151 100 26 243 752 174 95 538 133 395 143 105 253 111 333 601 541 668 1231 Spaces Moved 11645 | 3 253 348 164 126 440 452 362 221 76 530 1327 533 327 954 163 629 229 247 611 314 396 610 278 466 1586 Core 200 | . . . . . . . . . . . . . . . . . . . . . . . . 197 3 Treads 1934 | 3 253 348 164 126 440 . . . . . . . . . . . . . . . . . . 50 550 Legs . | . . . . . . . . . . . . . . . . . . . . . . . . . . Wheels . | . . . . . . . . . . . . . . . . . . . . . . . . . . Hover 1504 | . . . . . . . . . . . . . . . . . . . 10 . 387 610 278 219 . Flight 8007 | . . . . . . 452 362 221 76 530 1327 533 327 954 163 629 229 247 601 314 9 . . . 1033 Fastest Speed 16 | 160 160 160 160 160 160 34 34 34 34 34 29 29 29 29 29 28 39 39 34 34 35 55 60 50 16 Average Speed 56 | 160 160 160 160 160 161 34 34 34 34 34 30 29 29 29 29 31 39 39 37 34 58 62 61 72 63 Slowest Speed 260 | 160 160 160 160 160 260 34 34 104 34 34 31 29 29 29 29 40 40 40 50 35 76 72 146 152 152 Overloaded Moves . | . . . . . . . . . . . . . . . . . . . . . . . . . . Propulsion Burnouts . | . . . . . . . . . . . . . . . . . . . . . . . . . . Robots Hopped 33 | . . . . . . 5 . . . 1 4 3 . . . 7 . . . . . . . . 13 Cave-ins Triggered . | . . . . . . . . . . . . . . . . . . . . . . . . . . Exploration Rate (%) 44 | 3 40 74 54 39 38 15 58 40 69 68 28 69 54 83 42 17 48 55 85 59 10 20 35 16 45 Regions Visited 25 Branch Regions 16 Pre-discovered Areas 6 | . . . 1 1 . . . . 1 . . . . 2 . . . 1 . . . . . . . Known Exits Taken 6 | . . . . . . 1 . . . 1 1 . . . . 1 . . . . . 1 1 . . Unknown Exits Taken 19 | 1 1 1 1 1 1 . 1 1 1 . . 1 1 1 1 . 1 1 1 1 1 . . 1 . Scrap Searched 13 | . . 1 . . . . 3 1 . 1 . 1 . 2 1 . 1 . . 2 . . . . . Spaces Dug 72 | . . . . . . 3 4 . . 3 13 . . . 1 6 . . . . 1 8 9 1 23 Terrain Destroyed 327 | . . . . . 9 25 12 . . 3 46 16 . . 1 27 . 6 . . 1 8 12 13 148 Melee 47 | . . . . . . . 4 . . 3 13 . . . 1 6 . . . . 1 8 5 1 5 Projectile 14 | . . . . . . . . . . . . . . . . . . . . . . . 7 1 6 AOE 266 | . . . . . 9 25 8 . . . 33 16 . . . 21 . 6 . . . . . 11 137 Terrain Rammed 1 | . . . . . . . . . . . . . . . . . . . . . . . . . 1 Walls Destroyed . | . . . . . . . . . . . . . . . . . . . . . . . . . . Machines Disabled 1 | . . . . . . . . . . . . . . . . . . . . . . . . . 1 Actions | -11 -10 -10 -10 -9 -8 -7 -7 -7 -7 -6 -6 -6 -6 -6 -5 -5 -5 -5 -5 -4 -4 -3 -3 -2 -1 --------- Run | Scr Mat Min Exi Min Mat Fac Low Low Dat Pro Fac Low Low Zio Pro Fac Upp Upp War Pro Fac Res Tes Res Acc Total 14041 | 6 370 365 166 147 669 507 374 242 75 576 1606 545 326 1218 246 761 281 250 630 317 489 773 565 792 1745 Wait 1727 | . 61 . . 10 138 27 1 13 . 38 191 11 . 240 83 72 46 . 12 . 73 123 199 300 89 Move 11560 | 2 252 347 163 125 439 442 361 220 75 527 1318 526 326 953 162 617 228 246 610 313 395 609 277 465 1562 Hop 26 | . . . . . . 4 . . . 1 4 3 . . . 4 . . . . . . . . 10 Pick Up 68 | . 7 . 1 . 11 . 2 . . . 14 . . 5 . 6 1 1 . 1 4 5 5 1 4 Fast Attach 112 | . 3 . . . 13 6 . 3 . . 14 1 . 6 . 4 3 . 7 1 8 6 7 10 20 Attach 37 | 2 . . . . 2 4 . . . . 4 . . . . 9 1 1 . . 1 1 . 8 4 Detach 8 | 2 . . . . . . . . . . . . . . . 1 . . . . 1 . . 2 2 Swap 24 | . 5 . 1 . 4 . . 3 . . 5 . . 2 . 1 . . . . 1 1 1 . . Drop 127 | . 9 . 1 . 18 15 . 3 . . 17 1 . 12 . 7 2 . 1 2 4 1 11 3 20 Fire 167 | . 33 14 . 12 43 9 1 . . . 10 3 . . . 5 . 1 . . . . 9 1 26 Melee 162 | . . . . . . . 9 . . 10 29 . . . 1 35 . 1 . . 2 26 42 1 6 Ram 8 | . . . . . . . . . . . . . . . . . . . . . . 1 5 1 1 Kick . | . . . . . . . . . . . . . . . . . . . . . . . . . . Crush 6 | . . 4 . . 1 . . . . . . . . . . . . . . . . . . . 1 Escape Stasis . | . . . . . . . . . . . . . . . . . . . . . . . . . . Rewire 9 | . . . . . . . . . . . . . . . . . . . . . . . 9 . . Trap . | . . . . . . . . . . . . . . . . . . . . . . . . . . Miscellaneous . | . . . . . . . . . . . . . . . . . . . . . . . . . . Route ------- -11/Scrapyard -10/Materials (discovered 3 exits: [*Mat] / [*Min x2]) -10/Mines (discovered 3 exits: [*Mat x2] / *Exi) -10/Exiles -9/Mines -8/Materials -7/Factory (discovered 2 exits: *Low x2) -7/Lower Caves -7/Lower Caves -7/Data Miner -6/Proximity Caves -6/Factory (discovered 2 exits: *Low x2) -6/Lower Caves -6/Lower Caves (discovered 2 exits: *Fac / [*Zio]) -6/Zion (discovered 2 exits: [Dee] / [*Pro]) -5/Proximity Caves -5/Factory (discovered 2 exits: *Upp x2) -5/Upper Caves -5/Upper Caves -5/Warlord -4/Proximity Caves -4/Factory (discovered 3 exits: *Res / [Ext] / Arm) -3/Research (discovered 3 exits: Res / *Tes x2) -3/Testing -2/Research -1/Access To Epsilon Eridani History --------- Turn | Location | Event 4 | -11/Scrapyard | Discovered new exit (range 3) 8 | -11/Scrapyard | Entered Materials 92 | -10/Materials | Discovered new exit (range 16) 286 | -10/Materials | Repaired Ion Engine 303 | -10/Materials | Discovered new exit (range 4) 307 | -10/Materials | Build established: Mutant 479 | -10/Materials | Discovered new exit (range 9) 588 | -10/Materials | Entered Mines 729 | -10/Mines | YI-UF0 nonchalantly dropped a Grenade Launcher on the ground 813 | -10/Mines | Destroyed YI-UF0 965 | -10/Mines | Discovered new exit (range 8) 1144 | -10/Mines | Discovered new exit (range 5) 1184 | -10/Mines | Deemed a non-threat by the Exiles lab entrance 1186 | -10/Mines | Discovered new exit (range 5) 1192 | -10/Mines | Entered Exiles 1231 | -10/Exiles | Met 8R-AWN 1260 | -10/Exiles | Met EX-HEX 1349 | -10/Exiles | Met EX-DEC 1377 | -10/Exiles | Learned location of Zion (-6) 1443 | -10/Exiles | Discovered new exit (range 10) 1456 | -10/Exiles | Entered Mines 1620 | -9/Mines | Learned location of Storage (-9) 1672 | -9/Mines | Discovered new exit (range 14) 1702 | -9/Mines | Entered Materials 1702 | -8/Materials | Accompanied by 2 allies 1702 | -8/Materials | Evolved 4 slots: Propulsion x1, Utility x3 1707 | -8/Materials | Led the pair of lost Derelicts to an unsafe place 2260 | -8/Materials | Repaired Imp. Treads 2281 | -8/Materials | Discovered new exit (range 5) 2724 | -8/Materials | Entered Factory 2724 | -7/Factory | Evolved 2 slots: Utility x2 2751 | -7/Factory | Identified exit to Lower Caves 2945 | -7/Factory | Entered Lower Caves 3012 | -7/Lower Caves | Learned Factory garrison access intel 3045 | -7/Lower Caves | Learned Factory stockpile data 3092 | -7/Lower Caves | Discovered new exit (range 11) 3094 | -7/Lower Caves | Attracted the attention of an 0b10 checkpoint 3096 | -7/Lower Caves | Entered another Lower Caves area 3109 | -7/Lower Caves | Encountered a Warlord checkpoint 3188 | -7/Lower Caves | Learned location of 1 exit from Proximity Caves 3195 | -7/Lower Caves | Discovered new exit (range 5) 3196 | -7/Lower Caves | Entered Data Miner 3196 | -7/Data Miner | Discovered new exit (range 6) 3203 | -7/Data Miner | Met Data Miner 3209 | -7/Data Miner | Learned location of Section 7 (-2) 3209 | -7/Data Miner | Acquired the access code to Warlord's prototype stash 3215 | -7/Data Miner | Received God Mode back door access code from Data Miner 3222 | -7/Data Miner | Entered Proximity Caves 3223 | -6/Proximity Caves | Identified exit to Factory 3281 | -6/Proximity Caves | Spotted B-75 Beast 3381 | -6/Proximity Caves | Learned Factory trap positions 3403 | -6/Proximity Caves | Escorted by Enhanced Grunt 3465 | -6/Proximity Caves | Entered Factory 3465 | -6/Factory | Evolved 2 slots: Propulsion x1, Utility x1 3466 | -6/Factory | Loaded intel: 101 trap records 3468 | -6/Factory | Loaded intel: 4 garrison access locations 3494 | -6/Factory | Repaired Med. Storage Unit 3767 | -6/Factory | Identified exit to Lower Caves 4056 | -6/Factory | Build established: Sprinter 4116 | -6/Factory | Allied Derelicts attacked 0b10 via Garrison Access 4117 | -6/Factory | Cargo convoy interrupted 4217 | -6/Factory | Entered Lower Caves 4218 | -6/Lower Caves | Encountered a Warlord checkpoint 4230 | -6/Lower Caves | Learned Factory stockpile data 4344 | -6/Lower Caves | Learned Factory terminal intel 4387 | -6/Lower Caves | Discovered new exit (range 14) 4391 | -6/Lower Caves | Entered another Lower Caves area 4400 | -6/Lower Caves | Discovered new exit (range 12) 4403 | -6/Lower Caves | Spotted B-75 Beast 4485 | -6/Lower Caves | Discovered new exit (range 4) 4486 | -6/Lower Caves | Entered Zion 4509 | -6/Zion | Discovered new exit (range 14) 4545 | -6/Zion | Received a visual enhancement algorithm 4589 | -6/Zion | Learned Factory emergency access door positions 4620 | -6/Zion | Found Prototype Hackware 4620 | -6/Zion | Identified Exp. Hacking Suite 4623 | -6/Zion | Found Prototype Processor 4623 | -6/Zion | Identified Exp. Signal Interpreter 4625 | -6/Zion | Found Prototype Processor 4625 | -6/Zion | Identified Exp. Core Analyzer 4629 | -6/Zion | Found Exp. Terrain Scan Processor 4644 | -6/Zion | Found Exp. Terrain Scan Processor 4725 | -6/Zion | Learned location of Warlord (-5) 4726 | -6/Zion | Learned Factory emergency access door positions 4768 | -6/Zion | Discovered new exit (range 17) 4768 | -6/Zion | Gained Derelict followers 4777 | -6/Zion | Given the Hacking Drone Bay 4778 | -6/Zion | Found Prototype Device 4936 | -6/Zion | Build established: Hacker-Scout 5024 | -6/Zion | Entered Proximity Caves 5024 | -5/Proximity Caves | Accompanied by 2 allies 5105 | -5/Proximity Caves | Discovered new exit (range 6) 5157 | -5/Proximity Caves | Entered Factory 5157 | -5/Factory | Accompanied by 1 ally 5157 | -5/Factory | Evolved 2 slots: Utility x2 5160 | -5/Factory | Loaded intel: 20 terminal locations 5170 | -5/Factory | Identified exit to Upper Caves 5247 | -5/Factory | Lost 5 parts (1p1n2u1w) 5488 | -5/Factory | System corruption reached 10% 5505 | -5/Factory | Core integrity fell below 50% 5533 | -5/Factory | Lost 9 parts (5n2u2w) 5552 | -5/Factory | Entered Upper Caves 5555 | -5/Upper Caves | Attracted the attention of an 0b10 checkpoint 5597 | -5/Upper Caves | Learned location of 1 exit from Factory 5692 | -5/Upper Caves | Discovered new exit (range 8) 5695 | -5/Upper Caves | Entered another Upper Caves area 5725 | -5/Upper Caves | Attracted the attention of an 0b10 checkpoint 5761 | -5/Upper Caves | Build established: Hacker-Mutant 5766 | -5/Upper Caves | Encountered a Warlord checkpoint 5787 | -5/Upper Caves | Discovered new exit (range 11) 5790 | -5/Upper Caves | Acquired the password to a Derelict Tinkerer's latest research 5797 | -5/Upper Caves | Found Prototype Special Weapon 5800 | -5/Upper Caves | Entered Warlord 5815 | -5/Warlord | System corruption cleaned by Quarantine Array 5883 | -5/Warlord | Found Prototype Device 5883 | -5/Warlord | Identified Minesniffer Drone Bay 5933 | -5/Warlord | Met Warlord 5937 | -5/Warlord | Opened Warlord's prototype stash 5948 | -5/Warlord | Found Prototype Processor 5948 | -5/Warlord | Identified Spectral Analyzer 5949 | -5/Warlord | Found Prototype Device 5949 | -5/Warlord | Identified Exp. Focal Shield 5953 | -5/Warlord | Found Prototype Device 5953 | -5/Warlord | Identified Exp. Cloaking Device 5958 | -5/Warlord | Warlord's base attacked by MAIN.C 6021 | -5/Warlord | Spotted B-86 Titan 6021 | -5/Warlord | Spotted B-75 Beast 6037 | -5/Warlord | Opened side exit 6049 | -5/Warlord | Discovered new exit (range 12) 6053 | -5/Warlord | Entered Proximity Caves 6110 | -4/Proximity Caves | Learned 8 Research zone layouts 6163 | -4/Proximity Caves | Discovered new exit (range 5) 6164 | -4/Proximity Caves | Entered Factory 6164 | -4/Factory | Evolved 2 slots: Propulsion x1, Utility x1 6165 | -4/Factory | Identified exit to Armory 6194 | -4/Factory | Discovered new exit (range 17) 6236 | -4/Factory | Lost 4 parts (1p1n1u1w) 6383 | -4/Factory | Discovered new exit (range 8) 6497 | -4/Factory | Entered Research 6497 | -3/Research | Evolved 2 slots: Propulsion x1, Utility x1 6498 | -3/Research | Identified exit to Testing 6499 | -3/Research | Identified exit to Research 6678 | -3/Research | Build established: Hacker-Scout 6947 | -3/Research | Spotted B-86 Titan 7098 | -3/Research | Cargo convoy interrupted 7098 | -3/Research | Entered Testing 7198 | -3/Testing | Spotted PL-UTPRBQ8CG5 7208 | -3/Testing | Rewired PL-UTPRBQ8CG5 7213 | -3/Testing | Discovered exit to Research (range 22) 7223 | -3/Testing | Found Prototype Energy Cannon 7223 | -3/Testing | Identified Disintegrator 7393 | -3/Testing | Found Prototype Hackware 7494 | -3/Testing | Found Prototype Energy Cannon 7529 | -3/Testing | Scanned by Researcher 7639 | -3/Testing | Entered Research 7639 | -2/Research | Warlord forces began assault on 0b10 7639 | -2/Research | Evolved 2 slots: Utility x2 7641 | -2/Research | Identified System Mapper 7646 | -2/Research | Identified Imp. Potential Cannon 7665 | -2/Research | Lost 8 parts (1p3n3u1w) 7693 | -2/Research | Spotted B-90 Cyclops 7749 | -2/Research | Research machine network offline 7775 | -2/Research | Discovered new exit (range 21) 7816 | -2/Research | Lost 5 parts (1p2n2u) 7939 | -2/Research | Met up with Warlord 7990 | -2/Research | Borebot progress halted 8078 | -2/Research | Build established: Hacker-Mutant 8305 | -2/Research | Borebot progress halted 8307 | -2/Research | Entered Access 8307 | -1/Access | Evolved 2 slots: Power x1, Utility x1 8474 | -1/Access | Fabricated Combat Drone Bay (x1) 8643 | -1/Access | Incoming investigation squad redirected 8687 | -1/Access | Garrison activated, responded to threat 8711 | -1/Access | Spotted B-99 Colossus 9013 | -1/Access | Incoming assault squad redirected 9027 | -1/Access | Incoming investigation squad redirected 9413 | -1/Access | System corruption reached 10% 9452 | -1/Access | Lost 3 parts (1p1n1u) 9479 | -1/Access | Identified exit to Surface 9491 | -1/Access | Spotted B-99 Colossus 9491 | -1/Access | Spotted B-99 Colossus 9518 | -1/Access | Identified Molecular Deconstructor 9538 | *** | Escaped! Last Messages --------------- 09526_ Wall disintegrates. 09527_ Earth disintegrates. 09527_ Spectral Analyzer destroyed. 09528_ Entropy package melds with Earth. 09529_ Molecular Deconstructor destroyed. 09529_ Slug penetrates Wall. 09530_ Hacking Suite destroyed. 09530_ S-43 Plague destroyed. 09530_ System Mapper destroyed. 09532_ Reinforced Barrier disintegrates. 09532_ Imp. Melee Analysis Suite destroyed. 09532_ S-43 Plague destroyed. 09536_ Slammed into Main Access Shell. 09536_ Main Access Shell breached. 09536_ Exp. Q-thruster destroyed. 09536_ System corrupted by crushing effect (+3). 09536_ Machine Analyzer permanently disabled. 09536_ Destabilizing: Short circuit. 09536_ Adv. Signal Interpreter permanently disabled. 09536_ Destabilizing: Short circuit. Map ----- +----------------------------------------------------+ | ???????????????????"?????????????????????????##### | | ?????????????????????????????????????????????# | | ?????????????????????????????????????????????#|] | | ?????????????????????????????????????????????#|] | | ?????????????????????????????????????????"???#[] | | ????????????????????????????????????????"""??# | | ?????????????????????????????????????????"""?# | | ??????????????????????????????????????????"??# | | ?????????????????????????????????????????????# | | ?????????????????????????????????????????????# | | ?????????????????????????????????????????????##### | | ?????????????????????????????????????????????????? | | ?????????????????????????????????????????######??? | | ?????????????????????????????????????????# ?? | | ?????????????????????????????????????????# ?? | | ?????????????????????????????????????????# ? | | ?????????????????????????????????????????# " ? | | #????????????????????????????????????????# """ | | #????????????????????????????????????????# """ | | #???????????????????"##########??????????# " | | #???????????????????" "??" ????# | | #???????????????????" "??" ??# | | ##########??????????" """"" "??" ######### | | #??????????" " " "??" | | #??????????" " "" " "??" | | " #??????????" " @" " "??" | | """ #??????????" " " "??" | | "" #??????????" """""" "??" ###+##### | | " #??????????" "??" ??????????? | | !!!#??????????" ""?" ?????????????? | | =! #??????????"######### #?????????????????# | | =! #???????????????????# ##??????????????? ? | | #???????????????????## ##########????? # | | #??????????????????? #???? ! # | | ! #???????"""????????## = #??? # | | ##########???????"Y"??######?### ==%=%[ #??? # | | ?????????????????"?"??# #???# =%!*[= #?? # | | ??????????????????????# =#???#/#####+###? # | | ??????????????????????# #??## ### # # | | ??????????????????????# #### # # | | ??????????????????????# + " # | | ??????????????????????# # # # | | ??????????????????????# # #?????? # | | ??????????????????????# + ###???????# | | ??????????????????????# #### #?????????# | | ??????????????????????######??# == #?????????# | | ??????????????????????????????# #?????????# | | ??????????????????????????????# #???####### | | ??????????????????????????????# #?? ? | | ?????????????????""???????????# #? ? = | +----------------------------------------------------+ Best States ------------- Heat Dissipation 90 Energy Generation 43 Energy Capacity 1530 Matter Stores 344 Matter Capacity 800 Sight Range 24 Robot Scan Range 18 Terrain Scan Range 24 Terrain Scan Density 2010 Cloak Strength 4 Additional Mass Support 9 Corruption Prevention 12 Armor Coverage 450 Resistance: KI 30 Evasion (%) 66 Targeting Accuracy 8 Melee Accuracy 6 Launcher Accuracy 20 Target Analysis 6 Armor Integrity Analysis 20 Recoil Reduction 5 Offensive Hacking 72 Defensive Hacking 10 Item Schematics ----------------- Huge Storage Unit | -8/Materials | Hacked Imp. Flight Unit | -8/Materials | Scanalyzed Combat Drone Bay | -7/Data Miner | Free Lgt. Regenerative Plating | -7/Data Miner | Free Exp. Flexi-carbon Leg | -7/Data Miner | Free Exp. Terrain Scan Processor | -7/Data Miner | Free Exp. Targeting Computer | -7/Data Miner | Free Exp. ECM Suite | -7/Data Miner | Free Cloaking Device | -7/Data Miner | Free Kinetic Spear | -7/Data Miner | Free Enh. Nova Cannon | -3/Research | Hacked Robot Schematics ------------------ S-27 Virus | -7/Data Miner | Free G-50 Soldier | -7/Data Miner | Free G-67 Veteran | -7/Data Miner | Free X-72 Disruptor | -7/Data Miner | Free I-36 Angel | -7/Data Miner | Free Fabricated ------------ Combat Drone Bay | x1 | -1/Access Alien Tech Used ----------------- None Achievements -------------- None Challenges ------------ None Game ------ Seed SurgeSuspensionGravjet Manual? 0 Play Time 02:22:22 Cumulative 389.1 hours Start 2021.06.17 @ 20:59:12 End 2021.06.19 @ 18:55:47 Sessions 3 Manual Loads 0 Difficulty Rogue Special Mode None Game No. 368 Rogue 153 Adventurer 112 Explorer 103 Win Type 0 Total 27 Types 19/0/5/2/0/0/0/1/0 Lore% 85 Gallery% 90 Achievement% 74 Wizard Run 0 Options --------- ASCII 0 Keyboard 0 Movement Numpad Keybinds 0 Fullscreen 2 Font 18/TerminusBold Map View 76x50 Tactical HUD 1 Map Filters NONE Filters NONE Steam 1 RUN: 6d5d320b-a1a4-47f9-b7b1-abfa25d532da